[Event "Torneo Nuevo Centro. Jornada 10"]
[Site "Chess.com"]
[Date "2020.08.21"]
[Round "5"]
[White "Cantero Navarro, Antonio"]
[Black "Kovacevic, Slobodan"]
[Result "0-1"]
[WhiteElo "1950"]
[BlackElo "2312"]
[TimeControl "180+2"]
[EndTime "11:24:54 PDT"]
[Termination "Victoria de nikko110 por jaque mate"]

1. e4 {[%clk 0:03:01.9]} 1... c5 {[%clk 0:02:59]} 2. Nf3 {[%clk 0:03:02.1]} 2...
e6 {[%clk 0:02:58.1]} 3. b3 {[%clk 0:03:02.2]} 3... b6 {[%clk 0:02:57.5]} 4. Bb2
{[%clk 0:03:01]} 4... Bb7 {[%clk 0:02:57.8]} 5. Nc3 {[%clk 0:02:49.3]} 5... a6
{[%clk 0:02:57.1]} 6. Bd3 {[%clk 0:02:44.1]} 6... d6 {[%clk 0:02:56.3]} 7. O-O
{[%clk 0:02:43.5]} 7... Nd7 {[%clk 0:02:56.5]} 8. Re1 {[%clk 0:02:41.5]} 8...
Qc7 {[%clk 0:02:56.4]} 9. Ne2 {[%clk 0:02:21.4]} 9... Ngf6 {[%clk 0:02:52]} 10.
Ng3 {[%clk 0:02:18.3]} 10... Be7 {[%clk 0:02:50]} 11. c4 {[%clk 0:02:11.1]}
11... O-O {[%clk 0:02:48.2]} 12. Bc2 {[%clk 0:02:11.6]} 12... Ne5 {[%clk
0:02:45.2]} 13. d4 {[%clk 0:02:07.9]} 13... cxd4 {[%clk 0:02:41.3]} 14. Bxd4
{[%clk 0:02:05]} 14... Rfd8 {[%clk 0:02:38.4]} 15. Rc1 {[%clk 0:01:42.3]} 15...
Rac8 {[%clk 0:02:36.9]} 16. Bb1 {[%clk 0:01:42]} 16... Nfd7 {[%clk 0:02:31.8]}
17. Nd2 {[%clk 0:01:32.9]} 17... Bg5 {[%clk 0:02:21.4]} 18. Rf1 {[%clk
0:01:21.4]} 18... Ng6 {[%clk 0:02:19.6]} 19. Nh5 {[%clk 0:01:16.8]} 19... e5
{[%clk 0:02:14.1]} 20. Bb2 {[%clk 0:01:10.4]} 20... Nc5 {[%clk 0:02:13.3]} 21.
Bc3 {[%clk 0:00:49.8]} 21... Bxd2 {[%clk 0:02:04.8]} 22. Qxd2 {[%clk 0:00:42.2]}
22... Nxe4 {[%clk 0:02:01.8]} 23. Bxe4 {[%clk 0:00:41.8]} 23... Bxe4 {[%clk
0:02:00.6]} 24. f4 {[%clk 0:00:29.7]} 24... exf4 {[%clk 0:01:35.1]} 25. Qd1
{[%clk 0:00:18.9]} 25... Qc5+ {[%clk 0:01:29.2]} 26. Bd4 {[%clk 0:00:18.6]}
26... Qg5 {[%clk 0:01:28.3]} 27. Rf2 {[%clk 0:00:17.5]} 27... b5 {[%clk
0:01:26.2]} 28. Nxg7 {[%clk 0:00:17.6]} 28... Ne5 {[%clk 0:01:11.8]} 29. Qe2
{[%clk 0:00:15.6]} 29... Bb7 {[%clk 0:01:03.2]} 30. Nh5 {[%clk 0:00:15.9]} 30...
f3 {[%clk 0:01:00.4]} 31. Qe3 {[%clk 0:00:09.9]} 31... Qxh5 {[%clk 0:00:58.2]}
32. gxf3 {[%clk 0:00:10.2]} 32... Kh8 {[%clk 0:00:52.4]} 33. f4 {[%clk
0:00:09.6]} 33... Rg8+ {[%clk 0:00:51.2]} 34. Kf1 {[%clk 0:00:10.6]} 34... f6
{[%clk 0:00:48]} 35. fxe5 {[%clk 0:00:11.4]} 35... fxe5 {[%clk 0:00:47.5]} 36.
Bb2 {[%clk 0:00:11]} 36... bxc4 {[%clk 0:00:44]} 37. bxc4 {[%clk 0:00:11.7]}
37... Rcf8 {[%clk 0:00:42.3]} 38. c5 {[%clk 0:00:11.8]} 38... Rxf2+ {[%clk
0:00:40.5]} 39. Kxf2 {[%clk 0:00:12.2]} 39... Rf8+ {[%clk 0:00:39]} 40. Ke1
{[%clk 0:00:12.4]} 40... Qh4+ {[%clk 0:00:37.6]} 41. Kd2 {[%clk 0:00:12.3]}
41... Qxh2+ {[%clk 0:00:36.9]} 42. Kd1 {[%clk 0:00:10.1]} 42... Rf1+ {[%clk
0:00:35.2]} 43. Qe1 {[%clk 0:00:11.1]} 43... Bf3# {[%clk 0:00:33.9]} 0

[Event "Torneo Nuevo Centro. Jornada 10"]
[Site "Chess.com"]
[Date "2020.08.21"]
[Round "5"]
[White "Yatseta Fernandez, Marc Kazymyr"]
[Black "Ledezma Fortes, Jose Manuel"]
[Result "0-1"]
[WhiteElo "1454"]
[BlackElo "1808"]
[TimeControl "180+2"]
[EndTime "11:24:54 PDT"]
[Termination "Victoria de josema54 por abandono"]

1. d4 {[%clk 0:03:01.9]} 1... c6 {[%clk 0:02:59.9]} 2. c4 {[%clk 0:03:02.7]}
2... g6 {[%clk 0:02:59.9]} 3. Nf3 {[%clk 0:03:03.4]} 3... Bg7 {[%clk 0:03:00.7]}
4. Bf4 {[%clk 0:03:02.7]} 4... Nf6 {[%clk 0:03:00.5]} 5. Nc3 {[%clk 0:03:01.4]}
5... d5 {[%clk 0:02:58.7]} 6. e3 {[%clk 0:02:59.1]} 6... O-O {[%clk 0:02:58.2]}
7. Bd3 {[%clk 0:02:54.5]} 7... Bg4 {[%clk 0:02:58.1]} 8. cxd5 {[%clk 0:02:54]}
8... Nxd5 {[%clk 0:02:56.7]} 9. Bg3 {[%clk 0:02:43.3]} 9... Qa5 {[%clk
0:02:51.8]} 10. Qb3 {[%clk 0:02:36.4]} 10... Bxf3 {[%clk 0:02:50.2]} 11. gxf3
{[%clk 0:02:38.3]} 11... Nxc3 {[%clk 0:02:48.9]} 12. bxc3 {[%clk 0:02:38.9]}
12... Qb6 {[%clk 0:02:45.6]} 13. Qxb6 {[%clk 0:02:36]} 13... axb6 {[%clk
0:02:46.3]} 14. Kd2 {[%clk 0:02:37.2]} 14... Nd7 {[%clk 0:02:46.6]} 15. Bc4
{[%clk 0:02:24.2]} 15... e5 {[%clk 0:02:45.5]} 16. Kc2 {[%clk 0:02:16.9]} 16...
exd4 {[%clk 0:02:46]} 17. cxd4 {[%clk 0:02:18.8]} 17... b5 {[%clk 0:02:46.6]}
18. Bb3 {[%clk 0:02:18.8]} 18... Nb6 {[%clk 0:02:46.9]} 19. Rhd1 {[%clk
0:02:14.2]} 19... Rac8 {[%clk 0:02:46.4]} 20. Rac1 {[%clk 0:02:10.1]} 20... Kh8
{[%clk 0:02:46]} 21. Kd2 {[%clk 0:02:10.1]} 21... f5 {[%clk 0:02:45.9]} 22. Be5
{[%clk 0:02:05.1]} 22... Bxe5 {[%clk 0:02:45.4]} 23. dxe5 {[%clk 0:02:07]} 23...
Rcd8+ {[%clk 0:02:44.3]} 24. Ke2 {[%clk 0:02:08.2]} 24... Rxd1 {[%clk
0:02:44.8]} 25. Rxd1 {[%clk 0:02:09.6]} 25... Kg7 {[%clk 0:02:42.4]} 26. e6
{[%clk 0:02:04.5]} 26... Re8 {[%clk 0:02:42.3]} 27. f4 {[%clk 0:02:01.9]} 27...
Kf6 {[%clk 0:02:42.8]} 28. f3 {[%clk 0:02:01.6]} 28... Re7 {[%clk 0:02:41]} 29.
e4 {[%clk 0:02:01.5]} 29... fxe4 {[%clk 0:02:38]} 30. fxe4 {[%clk 0:02:02.4]}
30... c5 {[%clk 0:02:37.5]} 31. Bd5 {[%clk 0:02:00.6]} 31... c4 {[%clk
0:02:33.7]} 32. Ke3 {[%clk 0:01:35.9]} 32... Na4 {[%clk 0:02:26.3]} 33. e5+
{[%clk 0:01:21.9]} 33... Kf5 {[%clk 0:02:19.5]} 34. h3 {[%clk 0:00:50.5]} 34...
g5 {[%clk 0:02:09.1]} 35. Be4+ {[%clk 0:00:39.8]} 35... Kxe6 {[%clk 0:02:08.4]}
36. Rd6+ {[%clk 0:00:39.7]} 36... Kf7 {[%clk 0:02:08.8]} 37. Bd5+ {[%clk
0:00:30.8]} 37... Kf8 {[%clk 0:02:05]} 38. Rd8+ {[%clk 0:00:22.2]} 38... Kg7
{[%clk 0:02:04.9]} 39. Rg8+ {[%clk 0:00:20.6]} 39... Kh6 {[%clk 0:02:00.1]} 40.
fxg5+ {[%clk 0:00:21.2]} 40... Kh5 {[%clk 0:02:00.5]} 41. Bf3+ {[%clk 0:00:21]}
41... Kh4 {[%clk 0:02:00.5]} 42. Kf4 {[%clk 0:00:21.8]} 42... Rf7+ {[%clk
0:01:59.9]} 43. Ke4 {[%clk 0:00:21.4]} 43... Nc5+ {[%clk 0:01:56.1]} 44. Ke3
{[%clk 0:00:21.6]} 44... Ne6 {[%clk 0:01:52]} 45. Bg4 {[%clk 0:00:21.9]} 45...
Nxg5 {[%clk 0:01:51.1]} 46. e6 {[%clk 0:00:22.4]} 46... Re7 {[%clk 0:01:50.2]}
47. Kd2 {[%clk 0:00:15.8]} 47... Nxe6 {[%clk 0:01:49.7]} 48. Bxe6 {[%clk
0:00:15.6]} 48... Rxe6 {[%clk 0:01:49.7]} 49. Rb8 {[%clk 0:00:16.1]} 49... Re5
{[%clk 0:01:46.3]} 50. Rxb7 {[%clk 0:00:15.6]} 50... h5 {[%clk 0:01:46.8]} 51.
Kc3 {[%clk 0:00:15.2]} 51... Kxh3 {[%clk 0:01:47.3]} 52. a4 {[%clk 0:00:14.3]}
52... bxa4 {[%clk 0:01:46.6]} 53. Kxc4 {[%clk 0:00:15.1]} 53... Re4+ {[%clk
0:01:46.4]} 54. Kd3 {[%clk 0:00:13.8]} 54... Rg4 {[%clk 0:01:45.3]} 55. Rb5
{[%clk 0:00:12.4]} 55... h4 {[%clk 0:01:45.2]} 56. Ra5 {[%clk 0:00:13.2]} 56...
Kg2 {[%clk 0:01:45.3]} 0

[Event "Torneo Nuevo Centro. Jornada 10"]
[Site "Chess.com"]
[Date "2020.08.21"]
[Round "5"]
[White "Pedros Viudes, Santiago"]
[Black "Chernikov, Vladimir"]
[Result "0-1"]
[WhiteElo "1923"]
[BlackElo "2213"]
[TimeControl "180+2"]
[EndTime "11:25:03 PDT"]
[Termination "Victoria de isla88 por abandono"]

1. d4 {[%clk 0:03:01.9]} 1... Nf6 {[%clk 0:02:55.6]} 2. Nf3 {[%clk 0:03:02.9]}
2... c5 {[%clk 0:02:50.4]} 3. d5 {[%clk 0:03:03.7]} 3... b5 {[%clk 0:02:51.1]}
4. c4 {[%clk 0:03:04.2]} 4... bxc4 {[%clk 0:02:49.4]} 5. Nc3 {[%clk 0:03:04.3]}
5... g6 {[%clk 0:02:48.4]} 6. e4 {[%clk 0:03:05.6]} 6... d6 {[%clk 0:02:49.7]}
7. Bf4 {[%clk 0:02:53.7]} 7... Bg7 {[%clk 0:02:47.4]} 8. Be2 {[%clk 0:02:54.5]}
8... Nh5 {[%clk 0:02:47.5]} 9. Be3 {[%clk 0:02:55.1]} 9... O-O {[%clk
0:02:41.5]} 10. Nd2 {[%clk 0:02:53]} 10... Nf6 {[%clk 0:02:37.1]} 11. O-O {[%clk
0:02:52.4]} 11... Nbd7 {[%clk 0:02:36.9]} 12. a4 {[%clk 0:02:50.7]} 12... Rb8
{[%clk 0:02:36.9]} 13. Qc2 {[%clk 0:02:44]} 13... Ba6 {[%clk 0:02:35.3]} 14.
Bxc4 {[%clk 0:02:44.8]} 14... Qb6 {[%clk 0:02:26.1]} 15. Bb5 {[%clk 0:02:08.3]}
15... Ne5 {[%clk 0:02:09]} 16. h3 {[%clk 0:01:59.2]} 16... e6 {[%clk 0:01:29.6]}
17. f4 {[%clk 0:01:26.4]} 17... Bxb5 {[%clk 0:01:30.1]} 18. axb5 {[%clk
0:01:24.9]} 18... Ned7 {[%clk 0:01:29.9]} 19. Nc4 {[%clk 0:01:00.1]} 19... Qc7
{[%clk 0:01:30.3]} 20. dxe6 {[%clk 0:00:55.2]} 20... fxe6 {[%clk 0:01:30.2]} 21.
Rfd1 {[%clk 0:00:44.5]} 21... d5 {[%clk 0:01:03]} 22. exd5 {[%clk 0:00:36.3]}
22... exd5 {[%clk 0:01:04.9]} 23. Nxd5 {[%clk 0:00:34.7]} 23... Nxd5 {[%clk
0:01:03.8]} 24. Rxd5 {[%clk 0:00:36.6]} 24... Rxb5 {[%clk 0:01:00.8]} 25. Rad1
{[%clk 0:00:26.9]} 25... Nf6 {[%clk 0:00:59.3]} 26. Rd6 {[%clk 0:00:21.6]} 26...
Re8 {[%clk 0:00:59]} 27. Bf2 {[%clk 0:00:20.6]} 27... Ne4 {[%clk 0:00:55.1]} 28.
Rd7 {[%clk 0:00:18.2]} 28... Qxf4 {[%clk 0:00:56.2]} 29. Rxa7 {[%clk 0:00:17.7]}
29... Nxf2 {[%clk 0:00:41.2]} 30. Qxf2 {[%clk 0:00:16.9]} 30... Bd4 {[%clk
0:00:41.3]} 31. Rxd4 {[%clk 0:00:17.1]} 31... Qxf2+ {[%clk 0:00:40]} 32. Kxf2
{[%clk 0:00:17.9]} 32... cxd4 {[%clk 0:00:41.3]} 33. Nd6 {[%clk 0:00:19.2]}
33... Rxb2+ {[%clk 0:00:42.3]} 34. Kg3 {[%clk 0:00:20.7]} 34... Re3+ {[%clk
0:00:30]} 35. Kf4 {[%clk 0:00:20]} 35... Rf2+ {[%clk 0:00:29.2]} 36. Kg5 {[%clk
0:00:18.8]} 36... Re5+ {[%clk 0:00:28.8]} 37. Kg4 {[%clk 0:00:17.7]} 37... d3
{[%clk 0:00:21.4]} 38. Ra8+ {[%clk 0:00:12.4]} 38... Rf8 {[%clk 0:00:21.8]} 39.
Ra3 {[%clk 0:00:09.3]} 39... Rd5 {[%clk 0:00:19.5]} 40. Ne4 {[%clk 0:00:08.3]}
40... d2 {[%clk 0:00:20.2]} 0

[Event "Torneo Nuevo Centro. Jornada 10"]
[Site "Chess.com"]
[Date "2020.08.21"]
[Round "5"]
[White "Fenollar Jorda, Manolo"]
[Black "Leal Uribe, Jhonny Alberto"]
[Result "1-0"]
[WhiteElo "2494"]
[BlackElo "2449"]
[TimeControl "180+2"]
[EndTime "11:25:31 PDT"]
[Termination "Victoria de Cucudrulu por abandono"]

1. d4 {[%clk 0:03:00.8]} 1... d5 {[%clk 0:02:58.8]} 2. Nf3 {[%clk 0:03:01]} 2...
Nf6 {[%clk 0:02:59.9]} 3. e3 {[%clk 0:03:01.8]} 3... e6 {[%clk 0:03:01.3]} 4.
Bd3 {[%clk 0:03:01.5]} 4... Bd6 {[%clk 0:03:01.4]} 5. Nbd2 {[%clk 0:02:59.9]}
5... Nbd7 {[%clk 0:03:02.4]} 6. O-O {[%clk 0:02:59]} 6... O-O {[%clk 0:03:02.9]}
7. Re1 {[%clk 0:02:57.6]} 7... e5 {[%clk 0:02:58.1]} 8. e4 {[%clk 0:02:53.4]}
8... dxe4 {[%clk 0:02:54.5]} 9. Nxe4 {[%clk 0:02:53.9]} 9... Nxe4 {[%clk
0:02:55.3]} 10. Bxe4 {[%clk 0:02:55.8]} 10... exd4 {[%clk 0:02:52]} 11. Qxd4
{[%clk 0:02:42.2]} 11... h6 {[%clk 0:02:42.3]} 12. b3 {[%clk 0:02:26.1]} 12...
Qf6 {[%clk 0:02:37.8]} 13. Bb2 {[%clk 0:02:19.9]} 13... Qxd4 {[%clk 0:02:37.3]}
14. Bxd4 {[%clk 0:02:21.8]} 14... Nc5 {[%clk 0:02:34]} 15. Bd5 {[%clk
0:01:45.4]} 15... c6 {[%clk 0:02:23.6]} 16. Bc4 {[%clk 0:01:45.7]} 16... Rd8
{[%clk 0:02:03]} 17. Rad1 {[%clk 0:01:43.7]} 17... Bg4 {[%clk 0:02:00.2]} 18. h3
{[%clk 0:01:39.4]} 18... Bxf3 {[%clk 0:01:56]} 19. gxf3 {[%clk 0:01:41.3]} 19...
Kf8 {[%clk 0:01:48.9]} 20. Be3 {[%clk 0:01:32.3]} 20... Be7 {[%clk 0:01:44.7]}
21. Kf1 {[%clk 0:01:17.8]} 21... b5 {[%clk 0:01:37.4]} 22. Be2 {[%clk
0:01:05.1]} 22... a5 {[%clk 0:01:36.2]} 23. f4 {[%clk 0:00:56.6]} 23... Ne4
{[%clk 0:01:13.2]} 24. Bf3 {[%clk 0:00:54.2]} 24... f5 {[%clk 0:01:06.5]} 25.
Bd4 {[%clk 0:00:28.2]} 25... Bb4 {[%clk 0:01:02.4]} 26. Bxe4 {[%clk 0:00:18.7]}
26... Bxe1 {[%clk 0:00:56.2]} 27. Bxc6 {[%clk 0:00:19.8]} 27... Rac8 {[%clk
0:00:56.4]} 28. Bc5+ {[%clk 0:00:16.8]} 28... Kf7 {[%clk 0:00:54.8]} 29. Rxd8
{[%clk 0:00:18.5]} 29... Rxd8 {[%clk 0:00:55.1]} 30. Kxe1 {[%clk 0:00:20.3]}
30... Rc8 {[%clk 0:00:48.9]} 31. Bd5+ {[%clk 0:00:14.9]} 31... Kg6 {[%clk
0:00:50.1]} 32. b4 {[%clk 0:00:09.1]} 32... axb4 {[%clk 0:00:48.8]} 33. Bxb4
{[%clk 0:00:11]} 33... Rxc2 {[%clk 0:00:50.2]} 34. Kf1 {[%clk 0:00:10.2]} 34...
Kh5 {[%clk 0:00:45.3]} 35. Kg2 {[%clk 0:00:10.4]} 35... g5 {[%clk 0:00:38.1]}
36. Bf7+ {[%clk 0:00:10.6]} 36... Kh4 {[%clk 0:00:38.1]} 37. Be1 {[%clk
0:00:04.8]} 37... Rc1 {[%clk 0:00:35.4]} 38. Bd2 {[%clk 0:00:03.6]} 38... Rd1
{[%clk 0:00:35.4]} 39. Be3 {[%clk 0:00:04.5]} 39... g4 {[%clk 0:00:33.2]} 40.
hxg4 {[%clk 0:00:05]} 40... fxg4 {[%clk 0:00:34.8]} 41. Bb3 {[%clk 0:00:05.4]}
41... Re1 {[%clk 0:00:31.1]} 42. f5 {[%clk 0:00:05]} 42... g3 {[%clk 0:00:31.3]}
43. f6 {[%clk 0:00:03.4]} 1

[Event "Torneo Nuevo Centro. Jornada 10"]
[Site "Chess.com"]
[Date "2020.08.21"]
[Round "5"]
[White "Castellano López, Javier"]
[Black "Luque Saiz, Andrés"]
[Result "0-1"]
[WhiteElo "1899"]
[BlackElo "2046"]
[TimeControl "180+2"]
[EndTime "11:25:41 PDT"]
[Termination "Victoria de Chuch1n por abandono"]

1. d4 {[%clk 0:03:01.9]} 1... d5 {[%clk 0:03:00.3]} 2. c4 {[%clk 0:03:02.7]}
2... c6 {[%clk 0:03:01.3]} 3. Nf3 {[%clk 0:03:02.1]} 3... Nf6 {[%clk 0:03:01.7]}
4. Bg5 {[%clk 0:03:03]} 4... dxc4 {[%clk 0:02:57]} 5. a4 {[%clk 0:03:02.6]} 5...
Bf5 {[%clk 0:02:44.8]} 6. e3 {[%clk 0:02:54.6]} 6... Ne4 {[%clk 0:02:38.7]} 7.
Bxc4 {[%clk 0:02:44.2]} 7... Qa5+ {[%clk 0:02:00.1]} 8. Nbd2 {[%clk 0:02:35.1]}
8... Nxg5 {[%clk 0:01:58.1]} 9. Nxg5 {[%clk 0:02:27.1]} 9... e6 {[%clk
0:01:58.7]} 10. Nf3 {[%clk 0:02:21.5]} 10... Nd7 {[%clk 0:01:55.2]} 11. Qb3
{[%clk 0:02:13.5]} 11... Bb4 {[%clk 0:01:50.2]} 12. Rd1 {[%clk 0:01:57.1]} 12...
Bg4 {[%clk 0:01:44.8]} 13. O-O {[%clk 0:01:41.8]} 13... Bxd2 {[%clk 0:01:28]}
14. Rxd2 {[%clk 0:01:39.3]} 14... Bxf3 {[%clk 0:01:27.8]} 15. gxf3 {[%clk
0:01:36.5]} 15... Qxd2 {[%clk 0:01:26.9]} 16. Qxb7 {[%clk 0:01:37.8]} 16... Rb8
{[%clk 0:01:22.8]} 17. Qxc6 {[%clk 0:01:39.1]} 17... Qb4 {[%clk 0:01:16.6]} 18.
Bb5 {[%clk 0:01:36.3]} 18... Qe7 {[%clk 0:01:16.7]} 19. Qc7 {[%clk 0:01:33.1]}
19... Rd8 {[%clk 0:01:08]} 20. Qxa7 {[%clk 0:01:31.1]} 20... O-O {[%clk
0:01:07.7]} 21. Rc1 {[%clk 0:01:22.9]} 21... Qg5+ {[%clk 0:01:05.9]} 22. Kf1
{[%clk 0:01:23.6]} 22... Qh5 {[%clk 0:01:04.7]} 23. Bxd7 {[%clk 0:01:16.9]}
23... Qxf3 {[%clk 0:01:02.1]} 24. Rc5 {[%clk 0:00:40.6]} 24... Qh1+ {[%clk
0:00:42.8]} 25. Ke2 {[%clk 0:00:41]} 25... Qxh2 {[%clk 0:00:43.2]} 26. b4 {[%clk
0:00:38.4]} 26... Qd6 {[%clk 0:00:37.5]} 27. Bb5 {[%clk 0:00:10]} 27... Ra8
{[%clk 0:00:30.2]} 28. Qc7 {[%clk 0:00:09.6]} 28... Qxc7 {[%clk 0:00:30.8]} 29.
Rxc7 {[%clk 0:00:11.5]} 29... Rfc8 {[%clk 0:00:32.2]} 30. Rxc8+ {[%clk
0:00:11.6]} 30... Rxc8 {[%clk 0:00:34.1]} 31. Kd3 {[%clk 0:00:12.1]} 31... Kf8
{[%clk 0:00:34.8]} 32. a5 {[%clk 0:00:13.4]} 32... Ke7 {[%clk 0:00:33.5]} 33. a6
{[%clk 0:00:14.8]} 33... Kd6 {[%clk 0:00:31.6]} 34. Ba4 {[%clk 0:00:07.9]} 34...
Kc7 {[%clk 0:00:30]} 35. b5 {[%clk 0:00:08.2]} 35... Kb6 {[%clk 0:00:30.3]} 36.
e4 {[%clk 0:00:09.4]} 36... Rc1 {[%clk 0:00:17.8]} 37. d5 {[%clk 0:00:08.7]}
37... exd5 {[%clk 0:00:18.4]} 38. exd5 {[%clk 0:00:10.6]} 38... Ra1 {[%clk
0:00:19.1]} 39. Bb3 {[%clk 0:00:05.3]} 39... Kxb5 {[%clk 0:00:19.6]} 40. Bc4+
{[%clk 0:00:06.8]} 40... Kc5 {[%clk 0:00:20.3]} 41. f4 {[%clk 0:00:03.7]} 41...
Ra3+ {[%clk 0:00:21.1]} 42. Ke4 {[%clk 0:00:04.3]} 42... Kxc4 {[%clk 0:00:23]}
43. d6 {[%clk 0:00:05.7]} 43... Rxa6 {[%clk 0:00:22.8]} 44. Ke5 {[%clk
0:00:06.9]} 44... Ra8 {[%clk 0:00:23.3]} 45. d7 {[%clk 0:00:08.1]} 45... Rd8
{[%clk 0:00:24.5]} 46. Kd6 {[%clk 0:00:10]} 46... Kd4 {[%clk 0:00:24.7]} 47. Ke7
{[%clk 0:00:10.8]} 47... Rxd7+ {[%clk 0:00:25.7]} 48. Kxd7 {[%clk 0:00:12.1]}
48... Ke4 {[%clk 0:00:26.5]} 49. Ke7 {[%clk 0:00:12.9]} 49... Kxf4 {[%clk
0:00:27.6]} 50. Kxf7 {[%clk 0:00:14.2]} 50... g5 {[%clk 0:00:29.5]} 51. Kg7
{[%clk 0:00:15.3]} 51... h5 {[%clk 0:00:31.4]} 52. Kh7 {[%clk 0:00:17.2]} 52...
h4 {[%clk 0:00:32.9]} 53. Kh6 {[%clk 0:00:19.1]} 53... h3 {[%clk 0:00:34.8]} 54.
Kh5 {[%clk 0:00:20.9]} 54... h2 {[%clk 0:00:36.7]} 55. Kg6 {[%clk 0:00:22]}
55... h1=Q {[%clk 0:00:38]} 56. Kf6 {[%clk 0:00:23.5]} 56... g4 {[%clk
0:00:37.7]} 57. Ke6 {[%clk 0:00:25.4]} 57... g3 {[%clk 0:00:39.6]} 58. Kd6
{[%clk 0:00:27]} 58... g2 {[%clk 0:00:41.5]} 59. Kc5 {[%clk 0:00:28.7]} 59...
g1=Q+ {[%clk 0:00:43.4]} 60. Kc4 {[%clk 0:00:30.6]} 60... Qe4+ {[%clk
0:00:44.1]} 0

[Event "Torneo Nuevo Centro. Jornada 10"]
[Site "Chess.com"]
[Date "2020.08.21"]
[Round "5"]
[White "Valverde Alcaide, Miguel Alejandro"]
[Black "Sanchis Bon, Sergi"]
[Result "1-0"]
[WhiteElo "895"]
[BlackElo "985"]
[TimeControl "180+2"]
[EndTime "11:25:41 PDT"]
[Termination "Victoria de mentafurterei por tiempo"]

1. d4 {[%clk 0:02:53.6]} 1... d5 {[%clk 0:02:53.9]} 2. Nf3 {[%clk 0:02:52.9]}
2... Nc6 {[%clk 0:02:49.5]} 3. Nc3 {[%clk 0:02:52.5]} 3... Nf6 {[%clk 0:02:48]}
4. Ne5 {[%clk 0:02:48.3]} 4... Nxe5 {[%clk 0:02:46.9]} 5. dxe5 {[%clk
0:02:49.1]} 5... d4 {[%clk 0:02:45.1]} 6. Na4 {[%clk 0:02:35.6]} 6... Ne4 {[%clk
0:02:39.8]} 7. Qd3 {[%clk 0:02:28.5]} 7... Bf5 {[%clk 0:02:35.2]} 8. Qf3 {[%clk
0:02:22.9]} 8... Bg6 {[%clk 0:02:28.7]} 9. h4 {[%clk 0:02:15.9]} 9... h5 {[%clk
0:02:26.6]} 10. g4 {[%clk 0:02:11.3]} 10... hxg4 {[%clk 0:02:25.1]} 11. Qxg4
{[%clk 0:02:07.6]} 11... e6 {[%clk 0:02:20.7]} 12. h5 {[%clk 0:02:07.7]} 12...
Bf5 {[%clk 0:02:19.7]} 13. Qf3 {[%clk 0:01:59.6]} 13... b5 {[%clk 0:02:04.7]}
14. Qf4 {[%clk 0:01:54.7]} 14... bxa4 {[%clk 0:01:56.7]} 15. f3 {[%clk
0:01:55.7]} 15... Nc5 {[%clk 0:01:51.1]} 16. e3 {[%clk 0:01:40.9]} 16... dxe3
{[%clk 0:01:49]} 17. Qxe3 {[%clk 0:01:39.1]} 17... Nb7 {[%clk 0:01:40.6]} 18.
Bb5+ {[%clk 0:01:29]} 18... Ke7 {[%clk 0:01:27.3]} 19. Qa3+ {[%clk 0:01:09.7]}
19... c5 {[%clk 0:01:23.9]} 20. Ba6 {[%clk 0:01:01.8]} 20... Rb8 {[%clk
0:01:18.4]} 21. Bxb7 {[%clk 0:00:48.9]} 21... Rxb7 {[%clk 0:01:15.9]} 22. Qxc5+
{[%clk 0:00:49.6]} 22... Ke8 {[%clk 0:01:11.8]} 23. Qc6+ {[%clk 0:00:44.3]}
23... Rd7 {[%clk 0:01:06.9]} 24. h6 {[%clk 0:00:19.2]} 24... gxh6 {[%clk
0:00:59.6]} 25. Be3 {[%clk 0:00:08.4]} 25... Qa5+ {[%clk 0:00:36.9]} 26. c3
{[%clk 0:00:05.2]} 26... Qd8 {[%clk 0:00:32.7]} 27. Bxa7 {[%clk 0:00:03.7]}
27... Be7 {[%clk 0:00:28]} 28. Bb6 {[%clk 0:00:04.8]} 28... Qc8 {[%clk 0:00:27]}
29. Qxc8+ {[%clk 0:00:05]} 29... Rd8 {[%clk 0:00:25]} 30. Bxd8 {[%clk
0:00:05.2]} 30... Bxd8 {[%clk 0:00:24.9]} 31. Qc6+ {[%clk 0:00:05.6]} 31... Ke7
{[%clk 0:00:23.1]} 32. Rd1 {[%clk 0:00:06.6]} 32... Ba5 {[%clk 0:00:21.4]} 33.
Qd7+ {[%clk 0:00:06.2]} 33... Kf8 {[%clk 0:00:21.1]} 34. Qc8+ {[%clk 0:00:05.7]}
34... Kg7 {[%clk 0:00:23]} 35. Qc6 {[%clk 0:00:04.7]} 35... Bd8 {[%clk
0:00:21.5]} 36. Qd7 {[%clk 0:00:03.7]} 36... Ba5 {[%clk 0:00:14.2]} 37. Qd4
{[%clk 0:00:03.4]} 37... Bc7 {[%clk 0:00:10]} 38. Qxa4 {[%clk 0:00:04.8]} 38...
Bxe5 {[%clk 0:00:09.5]} 39. Qb5 {[%clk 0:00:04.1]} 39... Bf6 {[%clk 0:00:08.3]}
40. Qc5 {[%clk 0:00:03.5]} 40... Re8 {[%clk 0:00:06.6]} 41. Kf2 {[%clk
0:00:03.4]} 41... Rf8 {[%clk 0:00:04.9]} 42. Qe3 {[%clk 0:00:03.2]} 42... Bg5
{[%clk 0:00:03.4]} 43. Qd4+ {[%clk 0:00:03.5]} 43... f6 {[%clk 0:00:02.2]} 44.
Qd7+ {[%clk 0:00:03.2]} 1